Cogmind - Beta 14 @@@ ROGUE MODE // 2024.11.03 @ 21:06:23 Player: OG DANIEL Result: Destroyed self with Mini Grenade Launcher Performance ------------- Evolutions (1) 500 Regions Visited (4) 800 Robots Destroyed (23) 115 Value Destroyed (516) 516 Prototype IDs (1) 20 Alien Tech Used (0) 0 Bonus (46) 46 TOTAL SCORE: 1997 Bonus ------- High Alert Combat Kills 19 Follower Combat Kills 60 Friendly Fire -33 Cogmind --------- Core Integrity 0/400 Matter 224/300 Energy 85/100 System Corruption 6% Temperature Cool (0) Movement Core (100) Ox1 Location -9/Mines Parts ------- > --- POWER (1) -------- (None) > --- PROPULSION (3) --- (None) > --- UTILITY (3) ------ Small Storage Unit > --- WEAPON (2) ------- Mini Grenade Launcher > --- INVENTORY (8) ---- Light Deuterium Engine Small Laser Precision Beam Rifle Improved Assault Rifle Improved Assault Rifle Improved Assault Rifle Peak State ------------ > --- POWER ------------ Light Deuterium Engine > --- PROPULSION ------- Light Treads > --- UTILITY ---------- Small Storage Unit Structural Scanner Reaction Control System > --- WEAPON ----------- Mini Grenade Launcher Mini Grenade Launcher > --- INVENTORY -------- Light Deuterium Engine Small Laser Precision Beam Rifle Improved Assault Rifle Improved Assault Rifle Improved Assault Rifle Mini Grenade Launcher Mini Grenade Launcher [Rating: 15] Favorites ----------- Power Ion Engine Engine Ion Engine Propulsion Light Treads Treads Light Treads Flight Unit Flight Unit Utility Small Storage Unit Device Structural Scanner Storage Small Storage Unit Processor Targeting Computer Weapon Mini Grenade Launcher Ballistic Gun Assault Rifle Launcher Mini Grenade Launcher Build | -11 -10 -10 -9 -9 ------- Run | Yrd Mat Min Mat Min Slots Evolved 2 | . . . 2 . Power . | . . . . . Propulsion 1 | . . . 1 . Utility 1 | . . . 1 . Weapon . | . . . . . Parts Attached 21 | 6 7 3 2 3 Power 4 | 1 2 . 1 . Engine 4 | 1 2 . 1 . Core . | . . . . . Reactor . | . . . . . Propulsion 3 | 2 . . . 1 Treads 2 | 2 . . . . Leg . | . . . . . Wheel . | . . . . . Hover . | . . . . . Flight 1 | . . . . 1 Utility 4 | . 2 1 1 . Device 2 | . . 1 1 . Storage 1 | . 1 . . . Processor 1 | . 1 . . . Hackware . | . . . . . Protection . | . . . . . Artifact . | . . . . . Weapon 10 | 3 3 2 . 2 Energy Gun . | . . . . . Energy Cannon . | . . . . . Ballistic Gun 5 | 3 1 1 . . Ballistic Cannon . | . . . . . Launcher 5 | . 2 1 . 2 Special Weapon . | . . . . . Impact Weapon . | . . . . . Slashing Weapon . | . . . . . Piercing Weapon . | . . . . . Special Melee Weapon . | . . . . . Unidentified Prototypes 1 | . 1 . . . Parts Lost 8 | . . 1 1 6 Power 1 | . . . . 1 Propulsion 3 | . . 1 1 1 Utility 2 | . . . . 2 Weapon 2 | . . . . 2 Highest Loss Streak 5 | . . 1 1 5 To Critical Strikes . | . . . . . Average Slot Usage (%) 80 | . 92 99 71 64 Engine 12 | . 14 14 11 10 Treads 15 | . 28 27 9 . Flight 2 | . . . . 8 Device 10 | . . 7 17 12 Storage 11 | . 8 14 11 11 Processor 3 | . 12 5 . . Ballistic Gun 4 | . 19 3 . . Launcher 19 | . 9 24 22 22 Peak Build Rating 15 | 5 11 11 15 14 Average Rating 10 | 4 8 10 12 12 On Entrance 7 | . 5 11 9 14 Naked Turns . | . . . . . Heaviest Build 14 | 9 14 14 14 14 Greatest Support 40 | 40 40 40 20 4 Greatest Overweight (x) 4 | . . . 4 4 Average Overweight (x) . | . . . . 3 Largest Inventory Capacity 8 | 5 8 8 8 8 Average Capacity 7 | 5 6 8 8 8 Most Carried 8 | 5 8 8 8 8 Average Carried 6 | 2 6 7 7 7 Final Capacity 8 | 5 8 8 8 8 Final Carried 8 | 5 6 7 8 6 Class Distribution -------------------- 100% | Mutant Dominant Class ---------------- Mutant | -10/Materials Mutant | -10/Mines Mutant | -9/Materials Mutant | -9/Mines Resources | -11 -10 -10 -9 -9 ----------- Run | Yrd Mat Min Mat Min Matter Collected 631 | 196 89 272 74 . Remotely . | . . . . . Salvage Created 343 | . 89 201 22 31 Parts 29 | . 5 9 5 10 Haulers Intercepted . | . . . . . Recyclers Shooed . | . . . . . Parts Field Recycled . | . . . . . Retrieved Matter . | . . . . . Parts Self-Destructed . | . . . . . Prevented . | . . . . . Kills | -11 -10 -10 -9 -9 ------- Run | Yrd Mat Min Mat Min Combat Hostiles Destroyed 24 | . 2 11 4 7 Guns 2 | . 2 . . . AOE 22 | . . 11 4 7 Classes Destroyed 5 | . 1 2 . 2 Worker 1 | . . . . 1 Recycler 1 | . . 1 . . Swarmer 11 | . . 3 4 4 Grunt 10 | . 2 8 . . Assembled 3 | . . . . 3 Best Kill Streak 5 | . 1 5 4 4 Combat Bots Only 4 | . 1 4 4 4 Max Kills in Single Turn 4 | . 1 3 3 4 Gunslinging . | . . . . . Exploded 4 | . . 3 3 4 Melee . | . . . . . Uniques/NPCs Destroyed . | . . . . . Combat | -11 -10 -10 -9 -9 -------- Run | Yrd Mat Min Mat Min Hostile Shots Fired 49 | . 12 20 5 12 Missed 15 | . 4 8 2 1 Damage Taken 1202 | . 123 427 92 560 Core 537 | . . 125 37 375 Absorbed by Shields . | . . . . . Core Remaining (%) 75 | 100 . 50 . . Volleys Fired 33 | . 12 15 2 4 Largest 2 | . 1 2 2 2 Hottest 60 | . 23 60 60 60 Shots Fired 46 | . 12 24 4 6 Gun 17 | . 12 5 . . Cannon . | . . . . . Launcher 29 | . . 19 4 6 Special . | . . . . . Kinetic 17 | . 12 5 . . Thermal . | . . . . . Explosive 29 | . . 19 4 6 Electromagnetic . | . . . . . Robot Hit Streak 7 | . 5 7 . 1 Robot Miss Streak 2 | . 2 2 . 1 Penetration Max . | . . . . . Secondary Targets . | . . . . . Shots Hit Robots 23 | . 9 12 . 2 Core Hits 39 | . 4 18 3 14 Critical Kills . | . . . . . Critical Parts Destroyed 1 | . . 1 . . Critical Strikes 1 | . . 1 . . Destroy 1 | . . 1 . . Melee Attacks . | . . . . . Impact . | . . . . . Slashing . | . . . . . Piercing . | . . . . . Sneak Attacks . | . . . . . Combat Hostiles . | . . . . . Follow-up Attacks . | . . . . . Damage Inflicted 2175 | 2 136 1234 285 518 Guns 184 | . 136 48 . . Cannons . | . . . . . Explosions 1989 | . . 1186 285 518 Melee . | . . . . . Ramming 2 | 2 . . . . Kinetic 184 | . 136 48 . . Thermal . | . . . . . Explosive 1989 | . . 1186 285 518 Electromagnetic . | . . . . . Impact . | . . . . . Slashing . | . . . . . Piercing . | . . . . . Highest Corruption 6 | . . . . 6 Average Corruption 5 | . . . . 5 Corruption Purged . | . . . . . Corruption Blocked . | . . . . . Effects 1 | . . . . 1 Parts Rejected 1 | . . . . 1 Overload Shots . | . . . . . Overflow Damage 109 | . . 52 54 3 Projectiles . | . . . . . Explosions 109 | . . 52 54 3 Melee . | . . . . . Knockbacks . | . . . . . Impact . | . . . . . Kinetic . | . . . . . Secondary . | . . . . . Self-Inflicted Damage 442 | . . 296 66 80 Shots 14 | . . 9 2 3 Rammed 2 | 1 . 1 . . Targets Rammed 2 | 1 . 1 . . Kicked . | . . . . . Crushed . | . . . . . Highest Temperature 21 | . . 21 . . Average Temperature 9 | . . 9 . . Received Heat Transfer 132 | . 66 57 . 9 Siege Activations . | . . . . . Robots Corrupted . | . . . . . Combat Hostiles . | . . . . . Parts Fried . | . . . . . Impact Corruptions . | . . . . . Robots Melted . | . . . . . Combat Hostiles . | . . . . . Parts Melted . | . . . . . Heat Transferred . | . . . . . Parts Sabotaged . | . . . . . Parts Stolen . | . . . . . Parts Stripped . | . . . . . Power Chain Reactions . | . . . . . Alert | -11 -10 -10 -9 -9 ------- Run | Yrd Mat Min Mat Min Peak Influence 440 | . 55 440 319 233 Initial 171 | . . 21 171 124 Average 147 | . 18 194 200 211 Maximum Alert Level 2 | . . 2 1 1 Low Security (%) 60 | 100 100 57 60 19 Level 1 37 | . . 37 39 80 Level 2 1 | . . 5 . . Level 3 . | . . . . . Level 4 . | . . . . . Level 5 . | . . . . . High Security . | . . . . . Max Security . | . . . . . Squads Dispatched 4 | . . 2 2 . Investigation . | . . . . . Extermination . | . . . . . Reinforcement 2 | . . . 2 . Assault 2 | . . 2 . . Garrison . | . . . . . Intercept . | . . . . . Searches Triggered . | . . . . . Construction Impeded . | . . . . . Haulers Reinforced . | . . . . . Active Scanning Responses . | . . . . . Cargo Convoy Interrupts . | . . . . . Stealth | -11 -10 -10 -9 -9 --------- Run | Yrd Mat Min Mat Min Distress Signals 1 | . . . 1 . Communications Jammed . | . . . . . Distress Signals . | . . . . . Times Spotted 46 | . 2 15 7 22 Peak Tracking Total 14 | . 2 4 4 14 Tactical Retreats 1 | . . . 1 . Traps | -11 -10 -10 -9 -9 ------- Run | Yrd Mat Min Mat Min Traps Triggered . | . . . . . Indirectly . | . . . . . Trap Hack Attempts . | . . . . . Triggered . | . . . . . Disarmed . | . . . . . Reprogrammed . | . . . . . Reused . | . . . . . Traps Extracted . | . . . . . Installed . | . . . . . Triggered . | . . . . . Machines | -11 -10 -10 -9 -9 ---------- Run | Yrd Mat Min Mat Min Machines Disabled 2 | . . 1 1 . Max in Single Turn 1 | . . 1 1 . Machines Repaired . | . . . . . Machines Dismantled . | . . . . . Machines Sabotaged . | . . . . . Overloaded Fab Kills . | . . . . . Hacking | -11 -10 -10 -9 -9 --------- Run | Yrd Mat Min Mat Min Machines Accessed 4 | . 2 . 2 . Terminals 3 | . 1 . 2 . Fabricators . | . . . . . Repair Stations . | . . . . . Recycling Units 1 | . 1 . . . Scanalyzers . | . . . . . Garrison Access . | . . . . . Total Hacks 10 | . 4 . 6 . Successful 10 | . 4 . 6 . Failed . | . . . . . Catastrophic . | . . . . . Database Lockouts . | . . . . . Manual . | . . . . . Terminals 7 | . 1 . 6 . Fabricators . | . . . . . Repair Stations . | . . . . . Recycling Units 3 | . 3 . . . Scanalyzers . | . . . . . Garrison Access . | . . . . . Terminal Hacks 7 | . 1 . 6 . Record 2 | . . . 2 . Alert Level 4 | . . . 4 . Zone Layout 1 | . 1 . . . Fabricator Hacks . | . . . . . Repair Station Hacks . | . . . . . Recycling Unit Hacks 3 | . 3 . . . Recycle Component 2 | . 2 . . . Process 1 | . 1 . . . Scanalyzer . | . . . . . Garrison Access Hacks . | . . . . . Unauthorized Hacks . | . . . . . Terminals . | . . . . . Fabricators . | . . . . . Repair Stations . | . . . . . Recycling Units . | . . . . . Scanalyzers . | . . . . . Garrison Access . | . . . . . Data Cores Recovered . | . . . . . Used . | . . . . . Hacking Detections 3 | . 1 . 2 . Full Trace Events . | . . . . . Feedback Events . | . . . . . Feedback Blocked . | . . . . . Robot Schematics Acquired . | . . . . . Robots Built . | . . . . . Authchips . | . . . . . Time . | . . . . . Total Robot Build Rating . | . . . . . Part Schematics Acquired . | . . . . . Parts Built . | . . . . . Authchips . | . . . . . Time . | . . . . . Total Part Build Rating . | . . . . . Parts Repaired . | . . . . . Time . | . . . . . Parts Recycled 2 | . 2 . . . Recycled Matter 124 | . 124 . . . Retrieved Matter . | . . . . . Retrieved Components . | . . . . . Parts Scanalyzed . | . . . . . Part Schematics Acquired . | . . . . . Parts Damaged . | . . . . . Bothacking | -11 -10 -10 -9 -9 ------------ Run | Yrd Mat Min Mat Min Used RIF Installer . | . . . . . Robots Hacked . | . . . . . Non-combat . | . . . . . Combat . | . . . . . Robot Hacks Applied . | . . . . . Relay Couplers Released . | . . . . . Fabnet Peak Effective % . | . . . . . Robots Rewired . | . . . . . Allies Hacked . | . . . . . Hacks Repelled . | . . . . . Allies | -11 -10 -10 -9 -9 -------- Run | Yrd Mat Min Mat Min Total Allies 6 | . . 1 . 5 Largest Group 5 | . . 1 . 5 Highest-Rated Group 85 | . . 31 . 85 Highest-Rated Ally 31 | . . 31 . 31 Total Orders . | . . . . . Ally Attacks 9 | . . 5 . 4 Total Damage 138 | . . 85 . 53 Kills 2 | . . 2 . . Allies Corrupted . | . . . . . Allies Melted . | . . . . . Intel | -11 -10 -10 -9 -9 ------- Run | Yrd Mat Min Mat Min Robot Analysis Total . | . . . . . Derelict Logs Recovered 1 | . . . . 1 Drone Launches . | . . . . . Drone Recoveries . | . . . . . Exploration | -11 -10 -10 -9 -9 ------------- Run | Yrd Mat Min Mat Min Turns Passed 1440 | 147 274 316 332 371 Spaces Moved 703 | 83 145 164 179 132 Core 53 | 5 . . 17 31 Treads 549 | 78 145 164 162 . Legs . | . . . . . Wheels . | . . . . . Hover . | . . . . . Flight 101 | . . . . 101 Fastest Speed 50 | 50 160 160 160 150 Average Speed 182 | 153 160 160 168 272 Slowest Speed 280 | 160 160 160 250 280 Overloaded Moves . | . . . . . Propulsion Burnouts . | . . . . . Robots Hopped . | . . . . . Cave-ins Triggered . | . . . . . Exploration Rate (%) 27 | 7 26 39 22 42 Regions Visited 4 Branch Regions 2 Pre-discovered Areas . | . . . . . Known Exits Taken . | . . . . . Unknown Exits Taken 4 | 1 1 1 1 . Scrap Searched . | . . . . . Spaces Dug 38 | . . 38 . . Terrain Destroyed 223 | . . 159 24 40 Melee . | . . . . . Projectile . | . . . . . AOE 223 | . . 159 24 40 Terrain Rammed . | . . . . . Walls Destroyed . | . . . . . Machines Disabled . | . . . . . Actions | -11 -10 -10 -9 -9 --------- Run | Yrd Mat Min Mat Min Total 812 | 99 175 193 206 139 Wait 36 | 6 4 6 20 . Move 699 | 82 144 163 178 132 Hop . | . . . . . Pick Up 14 | 4 5 3 2 . Fast Attach 11 | 5 3 . 2 1 Attach 4 | . 1 1 . 2 Detach 1 | . . 1 . . Swap 6 | 1 3 2 . . Drop 6 | . 3 1 2 . Fire 33 | . 12 15 2 4 Melee . | . . . . . Ram . | . . . . . Kick . | . . . . . Crush 2 | 1 . 1 . . Escape Stasis . | . . . . . Rewire . | . . . . . Trap . | . . . . . Miscellaneous . | . . . . . Route ------- -11/Scrapyard -10/Materials -10/Mines -9/Materials -9/Mines (discovered 1 exit: [*Zio]) History --------- Turn | Location | Event 9 | -11/Scrapyard | Discovered new exit (range 14) 148 | -11/Scrapyard | Entered Materials 315 | -10/Materials | Build established: Mutant 362 | -10/Materials | Discovered new exit (range 15) 422 | -10/Materials | Entered Mines 562 | -10/Mines | Discovered new exit (range 14) 616 | -10/Mines | Met a Derelict testing a Signal Generator 638 | -10/Mines | Found Signal Generator 738 | -10/Mines | Entered Materials 738 | -9/Materials | Evolved 2 slots: Propulsion x1, Utility x1 1024 | -9/Materials | Discovered new exit (range 13) 1070 | -9/Materials | Entered Mines 1078 | -9/Mines | Assisted by bots powering up and referring to "LRC-V3" 1392 | -9/Mines | Assembled infested the area 1398 | -9/Mines | A Derelict revealed a hidden shortcut to a safe place 1434 | -9/Mines | Core integrity fell below 50% 1438 | -9/Mines | Core integrity fell below 20% 1441 | -9/Mines | Destroyed self with Mini Grenade Launcher Last Messages --------------- 01433_ System corrupted by crushing effect (+2). 01433_ Knocked back. 01433_ Mni. Grenade Launcher destroyed. 01433_ 3I-M5V(g) destroyed. 01433_ as-91150 destroyed. 01433_ as-13106 destroyed. 01433_ as-45277 destroyed. 01433_ as-84931 destroyed. 01435_ as-51917 destroyed. 01436_ Mni. Grenade Launcher destroyed. 01438_ D-53 Grenadier destroyed. 01438_ K-01 Serf destroyed. 01439_ The unstable cave ceiling collapses. 01440_ System corrupted: Mni. Grenade Launcher rejected. 01440_ as-03689 destroyed. 01441_ The unstable cave ceiling collapses. 01441_ as-88357 destroyed. 01441_ as-06515 destroyed. 01441_ as-51146 destroyed. Map ----- +----------------------------------------------------+ | ??????????????????????????#### # #####????? | | ?????????????????????????#### ###?????? | | ????????????????????????#### % ##?????? | | ????????????????????????### # # ##?????? | | ????????????????????????## ## # ######### | | ????????????????????????## ### # ########## | | ????????????????????????## ### | | ????????????????????????### ## ####? | | ????????????????????????#### ## ####? | | ?????????????????????????#### ##? | | ??????????????????????????####### ### | | ???????????????????????????###### ########## ### | | ???????????????????????????????## ########## ## | | ??????????????????????########### ##??????## | | ?????????????????????############ #??????## | | ???????????????????? ### ### ##?????##### | | ????????????????????### ## ##?????##### | | ????????????????????## ## ##??######### | | ????????????????????## > ## ##?########### | | ????????????????????### ## ##?### #### | | ?????????????????????### ### ##?## ### | | ??????????? ????????## # ### ##?## ## | | ???????????# ???## ## ##?### """ | | ????????????# | # ###### """ | | ?????????????????#%a a # ####### """ # | | ?????????????????## % @ =% ##### ## | | ?????????????????## d ##### ## | | ?????????????????## a ### ## | | ?????????????????## = #### ## | | ?????????????????## # ## #### ## | | ??????????????????# # #### ## #### ## | | ??????????????????### ## ### ## | | ???????????????????## ## ### ############ | | ??????????????????? ### ############# | | ???????????????????###?# ??### ########?????????? | | ???????????????????###?# ??############??????????? | | ??????????????????????? ???######???????????????? | | ??????????????????????? ?????????????????????????? | | ??????????????????????? ?????????????????????????? | | ??????????????????????? ?????????????????????????? | | ??????????????????????? ?????????????????????????? | | ?????????????????????????????????????????????????? | | ?????????????????????????????????????????????????? | | ?????????????????????????????????????????????????? | | ?????????????????????????????????????????????????? | | ?????????????????????????????????????????????????? | | ?????????????????????????????????????????????????? | | ?????????????????????????????????????????????????? | | ?????????????????????????????????????????????????? | | ?????????????????????????????????????????????????? | +----------------------------------------------------+ Best States ------------- Heat Dissipation 28 Energy Generation 14 Energy Capacity 250 Matter Stores 284 Matter Capacity 300 Sight Range 16 Terrain Scan Density 10 Evasion (%) 40 Targeting Accuracy 5 Recoil Reduction 2 Item Schematics ----------------- None Robot Schematics ------------------ None Fabricated ------------ Nothing Alien Tech Used ----------------- None Achievements -------------- The More The Merrier Challenges ------------ None Game ------ Seed DeliveryRegenerativeTendrils Manual? 0 Play Time 00:16:49 Cumulative 5.3 hours Start 2024.11.03 @ 20:51:48 End 2024.11.03 @ 21:06:23 Sessions 1 Manual Loads 0 Difficulty Rogue Special Mode None Game No. 27 Rogue 27 Adventurer 0 Explorer 0 Win Type - Total 0 Types 0/0/0/0/0/0/0/0/0 Lore% 4 Gallery% 12 Achievement% 9 Wizard Run 0 Options --------- Layout 1 ASCII 0 Keyboard 0 Movement Numpad Keybinds 0 Fullscreen 1 Font 24/Smallcaps Map View 50x35 Zoom Use 0% Tactical HUD 1 Map Filters NONE Filters NONE Steam 1 RUN: cc02b378-d41f-4a7b-963a-8f0e5e287543